Cogmind - Beta 16 @@@ ROGUE MODE // 2025.11.15 @ 18:13:59 Player: Anting Result: Destroyed by M9-C9Z(R) with Subdweller Laser Performance ------------- Evolutions (0) 0 Regions Visited (2) 400 Robots Destroyed (26) 130 Value Destroyed (681) 681 Prototype IDs (2) 40 Alien Tech Used (0) 0 Bonus (0) 0 TOTAL SCORE: 1251 Bonus ------- None Cogmind --------- Core Integrity 0/250 Matter 218/300 Energy 200/200 System Corruption 2% Temperature Cool (6) Movement Rolling (110) Location -10/Subcaves Parts ------- > --- POWER (1) -------- Subdweller Power Source > --- PROPULSION (2) --- Aluminum Leg Subdweller Monowheel > --- UTILITY (2) ------ Small Storage Unit Seismic Detector > --- WEAPON (2) ------- Subdweller Machine Gun Barrage Gun > --- INVENTORY (8) ---- Subdweller Power Source Subdweller Monowheel Improved Terrain Scanner Subdweller Laser Subdweller Beam Cannon Subdweller Shrapnel Launcher Peak State ------------ > --- POWER ------------ Subdweller Power Source > --- PROPULSION ------- Aluminum Leg Aluminum Leg > --- UTILITY ---------- Small Storage Unit Improved Terrain Scanner > --- WEAPON ----------- Subdweller Beam Cannon Barrage Gun > --- INVENTORY -------- Subdweller Power Source Subdweller Monowheel Seismic Detector Scrap Shield Subdweller Laser Subdweller Machine Gun Subdweller Shrapnel Launcher [Rating: 14] Favorites ----------- Power Ion Engine Engine Ion Engine Propulsion Light Treads Treads Light Treads Leg Aluminum Leg Wheel Subdweller Monowheel Utility Small Storage Unit Device Seismic Detector Storage Small Storage Unit Protection Light Armor Plating Weapon Small Laser Energy Gun Small Laser Energy Cannon Subdweller Beam Cannon Ballistic Gun Assault Rifle Launcher Grenade Launcher Build | -11 -10 -10 ------- Run | Yrd Mat Sub Slots Evolved . | . . . Power . | . . . Propulsion . | . . . Utility . | . . . Weapon . | . . . Parts Attached 22 | 7 3 12 Power 3 | 1 . 2 Engine 3 | 1 . 2 Core . | . . . Reactor . | . . . Propulsion 5 | 2 . 3 Treads 2 | 2 . . Leg 2 | . . 2 Wheel 1 | . . 1 Hover . | . . . Flight . | . . . Utility 5 | 2 1 2 Device 2 | 1 . 1 Storage 1 | 1 . . Processor . | . . . Hackware . | . . . Protection 2 | . 1 1 Artifact . | . . . Weapon 9 | 2 2 5 Energy Gun 3 | 1 1 1 Energy Cannon 1 | . . 1 Ballistic Gun 3 | 1 . 2 Ballistic Cannon . | . . . Launcher 2 | . 1 1 Special Weapon . | . . . Impact Weapon . | . . . Slashing Weapon . | . . . Piercing Weapon . | . . . Special Melee Weapon . | . . . Unidentified Prototypes . | . . . Parts Lost 7 | . 1 6 Power 1 | . . 1 Propulsion 2 | . . 2 Utility 2 | . . 2 Weapon 2 | . 1 1 Highest Loss Streak 2 | . 1 2 To Critical Strikes . | . . . Average Backups 7 | 2 7 7 Power . | . . . Propulsion 1 | 1 2 1 Utility 2 | . 2 2 Weapon 2 | . 2 2 Tool/Special . | . . . Unused Backups 5 | . 1 4 Power 1 | . 1 . Propulsion 1 | . . 1 Utility 1 | . . 1 Weapon 2 | . . 2 Tool/Special . | . . . Average Slot Usage (%) 96 | . 99 95 Engine 11 | . 14 10 Treads 15 | . 27 8 Leg 11 | . . 17 Device 11 | . 10 12 Storage 13 | . 14 13 Protection 1 | . 3 1 Energy Gun 9 | . 13 6 Energy Cannon 4 | . . 6 Ballistic Gun 12 | . 11 13 Launcher 1 | . 2 . Peak Build Rating 14 | 7 8 14 Average Rating 9 | 4 7 10 On Entrance 4 | . 7 7 Avg Prop Armor Cover (%) 8 | . . 8 Naked Turns . | . . . Heaviest Build 25 | 14 17 25 Greatest Support 40 | 40 40 40 Greatest Overweight (x) 5 | 1 . 5 Average Overweight (x) . | . . . Largest Inventory Capacity 8 | 8 8 8 Average Capacity 7 | 7 8 7 Most Carried 8 | 5 8 8 Average Carried 7 | 3 7 7 Final Capacity 8 | 8 8 8 Final Carried 7 | 5 7 6 Class Distribution -------------------- 94% | Mutant 5% | Scavenger-Mutant Dominant Class ---------------- Mutant | -10/Materials Mutant | -10/Subcaves Resources | -11 -10 -10 ----------- Run | Yrd Mat Sub Matter Collected 966 | 291 211 464 Remotely . | . . . Salvage Created 786 | 133 279 374 Parts 61 | 9 24 28 Haulers Intercepted 1 | . 1 . Recyclers Shooed 2 | 1 1 . Parts Field Recycled . | . . . Retrieved Matter . | . . . Parts Self-Destructed 14 | . . 14 Prevented . | . . . Parts Restored . | . . . Kills | -11 -10 -10 ------- Run | Yrd Mat Sub Combat Hostiles Destroyed 19 | . 10 9 Guns 11 | . 5 6 Cannons 2 | . . 2 AOE 5 | . 5 . Classes Destroyed 7 | 2 4 1 Builder 2 | . 2 . Tunneler 3 | 3 . . Hauler 1 | . 1 . Recycler 1 | 1 . . Swarmer 3 | . 3 . Grunt 9 | . 7 2 Subdweller 7 | . . 7 Best Kill Streak 3 | 2 3 2 Combat Bots Only 3 | . 3 2 Max Kills in Single Turn 2 | 1 2 1 Gunslinging . | . . . Exploded 1 | . 1 . Melee . | . . . Uniques/NPCs Destroyed . | . . . Combat | -11 -10 -10 -------- Run | Yrd Mat Sub Hostile Shots Fired 124 | . 71 53 Missed 33 | . 23 10 Hits 91 | . 48 43 Projectile 91 | . 48 43 Critical Strikes 1 | . 1 . Damage Taken 1465 | . 598 867 Core 263 | . 118 145 Absorbed by Shields . | . . . Core Remaining (%) 100 | 100 . . Volleys Fired 110 | 7 55 48 Largest 2 | 2 2 2 Hottest 140 | 60 60 140 Shots Fired 182 | 14 88 80 Gun 148 | 14 71 63 Cannon 17 | . . 17 Launcher 17 | . 17 . Special . | . . . Kinetic 83 | 7 39 37 Thermal 82 | 7 32 43 Explosive 17 | . 17 . Electromagnetic . | . . . Robot Hit Streak 13 | 6 8 13 Robot Miss Streak 2 | 1 2 2 Penetration Max . | . . . Secondary Targets 2 | . 1 1 Max Gunslinging Chain 1 | . 1 1 Shots Hit Robots 111 | 10 50 51 Core Hits 49 | 5 26 18 Critical Kills 1 | . . 1 Critical Parts Destroyed . | . . . Critical Strikes 2 | . . 2 Meltdown 1 | . . 1 Destroy 1 | . . 1 Melee Attacks . | . . . Impact . | . . . Slashing . | . . . Piercing . | . . . Sneak Attacks . | . . . Combat Hostiles . | . . . Follow-up Attacks . | . . . Damage Inflicted 2329 | 114 1317 898 Guns 1301 | 114 571 616 Cannons 282 | . . 282 Explosions 746 | . 746 . Melee . | . . . Ramming . | . . . Kinetic 847 | 71 318 458 Thermal 736 | 43 253 440 Explosive 746 | . 746 . Electromagnetic . | . . . Impact . | . . . Slashing . | . . . Piercing . | . . . Highest Corruption 2 | . 2 2 Average Corruption 2 | . 2 2 Corruption Purged . | . . . Corruption Blocked . | . . . Effects 38 | . 10 28 Message Errors 9 | . 3 6 Matter Fused 10 | . . 10 Heat Flow Errors 7 | . 2 5 Energy Discharges 6 | . 3 3 Parts Rejected 1 | . 1 . Data Loss (minor) 2 | . . 2 Data Loss (major) 2 | . . 2 Misfires 1 | . 1 . Overload Shots . | . . . Overflow Damage 32 | . 32 . Projectiles . | . . . Explosions 32 | . 32 . Melee . | . . . Knockbacks . | . . . Impact . | . . . Kinetic . | . . . Secondary . | . . . Self-Inflicted Damage 78 | . 78 . Shots 4 | . 4 . Rammed . | . . . Targets Rammed . | . . . Kicked . | . . . Crushed . | . . . Highest Temperature 313 | . 163 313 Average Temperature 57 | . 55 63 Received Heat Transfer 513 | . 276 237 Effects 1 | . . 1 Energy Bleed 1 | . . 1 Siege Activations . | . . . Martial Activations . | . . . Shielding Activations . | . . . Robots Disrupted . | . . . Combat Hostiles . | . . . Robots Corrupted . | . . . Combat Hostiles . | . . . Parts Fried . | . . . Impact Corruptions . | . . . Robots Melted 1 | . . 1 Combat Hostiles 1 | . . 1 Parts Melted 4 | . 1 3 Heat Transferred 1345 | 100 575 670 Parts Sabotaged . | . . . Parts Stolen . | . . . Parts Stripped . | . . . Power Chain Reactions . | . . . Alert | -11 -10 -10 ------- Run | Yrd Mat Sub Maximum Alert Level . | . . . Low Security (%) 100 | 100 100 . Level 1 . | . . . Level 2 . | . . . Level 3 . | . . . Level 4 . | . . . Level 5 . | . . . High Security . | . . . Max Security . | . . . Peak Influence 186 | 10 186 . Initial . | . . . Average 35 | 1 39 . Influence Increases 407 | 20 337 50 Destroy 0b10 Robot/C 240 | . 200 40 Destroy 0b10 Robot/NC 35 | 20 15 . Destroy Leader 52 | . 42 10 Successful Hack 15 | . 15 . Select Force Hacks 30 | . 30 . Destroy Structure 20 | . 20 . Lose Combat Pursuer 15 | . 15 . Influence Decreases 407 | 20 169 218 Entered New Map 81 | . . 81 Time Decay 316 | 20 159 137 Lost Part 10 | . 10 . Squads Dispatched 3 | . 3 . Investigation 2 | . 2 . Extermination . | . . . Reinforcement 1 | . 1 . Assault . | . . . Garrison . | . . . Intercept . | . . . Searches Triggered . | . . . Construction Impeded . | . . . Haulers Reinforced . | . . . Active Scanning Responses . | . . . Cargo Convoy Interrupts . | . . . Stealth | -11 -10 -10 --------- Run | Yrd Mat Sub Distress Signals 3 | . 3 . Communications Jammed . | . . . Distress Signals . | . . . Times Spotted 30 | . 20 10 Peak Tracking Total 6 | . 6 2 Tactical Retreats 1 | . 1 . Traps | -11 -10 -10 ------- Run | Yrd Mat Sub Traps Triggered 2 | . 2 . Indirectly . | . . . Trap Hack Attempts . | . . . Triggered . | . . . Disarmed . | . . . Reprogrammed . | . . . Reused . | . . . Traps Extracted . | . . . Installed . | . . . Triggered . | . . . Machines | -11 -10 -10 ---------- Run | Yrd Mat Sub Machines Disabled . | . . . Max in Single Turn . | . . . Machines Repaired . | . . . Machines Dismantled . | . . . Machines Sabotaged . | . . . Overloaded Fab Kills . | . . . Hacking | -11 -10 -10 --------- Run | Yrd Mat Sub Machines Accessed 4 | . 4 . Terminals 3 | . 3 . Fabricators . | . . . Repair Stations . | . . . Recycling Units 1 | . 1 . Scanalyzers . | . . . Garrison Access . | . . . Total Hacks 8 | . 8 . Successful 6 | . 6 . Failed 2 | . 2 . Catastrophic . | . . . Database Lockouts . | . . . Manual 7 | . 7 . Terminals 7 | . 7 . Fabricators . | . . . Repair Stations . | . . . Recycling Units 1 | . 1 . Scanalyzers . | . . . Garrison Access . | . . . Terminal Hacks 2 | . 2 . Part Schematic 1 | . 1 . Prototype ID Bank 1 | . 1 . Fabricator Hacks . | . . . Repair Station Hacks . | . . . Recycling Unit Hacks . | . . . Scanalyzer . | . . . Garrison Access Hacks . | . . . Unauthorized Hacks 4 | . 4 . Terminals 3 | . 3 . Skim 3 | . 3 . Fabricators . | . . . Repair Stations . | . . . Recycling Units 1 | . 1 . Tunnel 1 | . 1 . Scanalyzers . | . . . Garrison Access . | . . . Data Cores Recovered . | . . . Used . | . . . Hacking Detections 3 | . 3 . Full Trace Events . | . . . Feedback Events . | . . . Feedback Blocked . | . . . Robot Schematics Acquired . | . . . Robots Built . | . . . Authchips . | . . . Time . | . . . Total Robot Build Rating . | . . . Part Schematics Acquired 1 | . 1 . Parts Built . | . . . Authchips . | . . . Time . | . . . Total Part Build Rating . | . . . Part Studies Acquired . | . . . Parts Repaired . | . . . Time . | . . . Parts Recycled . | . . . Recycled Matter . | . . . Retrieved Matter . | . . . Retrieved Components . | . . . Parts Scanalyzed . | . . . Part Schematics Acquired . | . . . Parts Damaged . | . . . Bothacking | -11 -10 -10 ------------ Run | Yrd Mat Sub Used RIF Installer . | . . . Robots Hacked . | . . . Non-combat . | . . . Combat . | . . . Robot Hacks Applied . | . . . Relay Couplers Released . | . . . Fabnet Peak Effective % . | . . . Robots Rewired . | . . . Allies Hacked . | . . . Hacks Repelled . | . . . Allies | -11 -10 -10 -------- Run | Yrd Mat Sub Total Allies . | . . . Largest Group . | . . . Highest-Rated Group . | . . . Highest-Rated Ally . | . . . Total Orders . | . . . Ally Attacks . | . . . Total Damage . | . . . Kills . | . . . Allies Corrupted . | . . . Allies Melted . | . . . Intel | -11 -10 -10 ------- Run | Yrd Mat Sub Active Infowar (turns) 2250 | 22 709 1519 Terrain 230 | . . 230 Seismic 2020 | 22 709 1289 Robot Analysis Total . | . . . Derelict Logs Recovered . | . . . Drone Launches . | . . . Drone Recoveries . | . . . Exploration | -11 -10 -10 ------------- Run | Yrd Mat Sub Turns Passed 2764 | 116 930 1718 Spaces Moved 891 | 53 259 579 Core 8 | 6 . 2 Treads 590 | 47 259 284 Legs 232 | . . 232 Wheels 61 | . . 61 Hover . | . . . Flight . | . . . Fastest Speed 50 | 50 160 110 Average Speed 165 | 152 160 168 Slowest Speed 300 | 160 160 300 Overloaded Moves . | . . . Propulsion Burnouts . | . . . Robots Hopped . | . . . Potential Cave-ins . | . . . Cave-ins Triggered . | . . . Exploration Rate (%) 26 | 4 41 34 Regions Visited 2 Branch Regions 1 Pre-discovered Areas 1 | . 1 . Known Exits Taken . | . . . Unknown Exits Taken 2 | 1 1 . Scrap Searched 4 | . . 4 Spaces Dug . | . . . Terrain Destroyed 39 | . 38 1 Melee . | . . . Projectile 1 | . . 1 AOE 38 | . 38 . Terrain Rammed . | . . . Walls Destroyed . | . . . Machines Disabled . | . . . Actions | -11 -10 -10 --------- Run | Yrd Mat Sub Total 1994 | 71 685 1238 Wait 926 | . 359 567 Move 889 | 52 258 579 Hop . | . . . Pick Up 20 | 5 4 11 Fast Attach 12 | 7 1 4 Attach 6 | . 1 5 Detach 1 | . . 1 Swap 20 | . 6 14 Drop 10 | . 1 9 Fire 110 | 7 55 48 Melee . | . . . Ram . | . . . Kick . | . . . Crush . | . . . Escape Stasis . | . . . Rewire . | . . . Trap . | . . . Miscellaneous . | . . . Route ------- -11/Scrapyard -10/Materials (discovered 2 exits: [*Mat] / [*Sub]) -10/Subcaves (discovered 2 exits: [*Mat x2]) History --------- Turn | Location | Event 13 | -11/Scrapyard | Discovered new exit (range 15) 117 | -11/Scrapyard | Entered Materials 308 | -10/Materials | Build established: Mutant 992 | -10/Materials | Discovered new exit (range 11) 1018 | -10/Materials | Discovered new exit (range 16) 1047 | -10/Materials | Entered Subcaves 1303 | -10/Subcaves | Discovered new exit (range 15) 1340 | -10/Subcaves | Disturbed a concealed Subdweller 1342 | -10/Subcaves | Core integrity fell below 50% 1664 | -10/Subcaves | A swath of the cavern ceiling suddenly collapsed 1950 | -10/Subcaves | Core integrity fell below 20% 2393 | -10/Subcaves | Discovered new exit (range 11) 2595 | -10/Subcaves | Ambushed by Subdwellers from Twisted Machinery 2765 | -10/Subcaves | Destroyed by M9-C9Z(R) with Subdweller Laser Last Messages --------------- 02576_ Sub. Power Source shoots sparks and powers down. 02607_ Dropped Scrap Shield. 02608_ Dropped Seismic Detector. 02608_ Dropped Sml. Storage Unit. 02609_ Acquired Scrap Shield. 02617_ Aluminum Leg destroyed. 02620_ Sub. Beam Cannon shoots sparks and powers down. 02627_ Sub. Laser melted. 02627_ QY-5RC(R) destroyed. 02627_ Switching to secondary target: GX-HIC(R). 02628_ Scrap Shield destroyed. 02630_ GX-HIC(R) destroyed. 02635_ Acquired Sml. Storage Unit. 02640_ Acquired Seismic Detector. 02643_ Acquired Broken Sub. Power Source. 02644_ Acquired 47 matter. 02646_ Acquired 29 matter. 02652_ Acquired Sub. Monowheel. Map ----- +----------------------------------------------------+ | ???????????????????# ##???????# #? | | ???????????????????# ##?????#### ##? | | ???????????????????# ##?????# ### ##?? | | ???????????????????# ####??# ##?#####??? | | ???????????????????# *&! ##### #?????????? | | ??????????????###### && ! "#?# #?????????? | | ?????????????##"" ## ! ### ##?????????? | | ?????????????# "" ## #?# ####??????????? | | ????????????## " #####?###??????????????? | | ???????????## " ###???###?????????????? | | ???????????# "#??## #?????????????? | | ???????????# ### ##??# #?????????????? | | ???????????## ### #### #?????????????? | | ????????????# ## ## #?????????????? | | ???????????## #?????????????? | | ???????????# #?????????????? | | ???????????## ## ## #?????????????? | | ????????????########### " #####?????????????? | | ??????????????????????##"" "##?????????????????? | | ???????????????????????## "####???????????????? | | ???????????????????????## """"#???????????????? | | ???????????????????????#"" """"#???????????????? | | ???????????????????????# """"" ##???????????????? | | ???????????????????????## " ###????????????????? | | ????????????????????????# """##??????????????????? | | ????????????????????????#@ ""#??????????????????? | | ????????????????????????##R "##??????????????????? | | ????????????????????##""## #??????????????????? | | ???????????????????" """ #??????????????????? | | ???????????????????" """ ##??????????????????? | | ???????????????????# ##### ???????????????????? | | ??????????????????????????## ??????????????????? | | ???????????????????????????# # ?????????????????? | | ???????????????????????????# ## ????????????????? | | ??????????????????????????? #?? #???????????????? | | ???????????????????????????###???#???????????????? | | ?????????????????????????????????????????????????? | | ?????????????????????????????????????????????????? | | ?????????????????????????????????????????????????? | | ?????????????????????????????????????????????????? | | ?????????????????????????????????????????????????? | | ?????????????????????????????????????????????????? | | ?????????????????????????????????????????????????? | | ?????????????????????????????????????????????????? | | ?????????????????????????????????????????????????? | | ?????????????????????????????????????????????????? | | ?????????????????????????????????????????????????? | | ?????????????????????????????????????????????????? | | ?????????????????????????????????????????????????? | | ?????????????????????????????????????????????????? | +----------------------------------------------------+ Best States ------------- Heat Dissipation 25 Energy Generation 15 Energy Capacity 250 Matter Stores 300 Matter Capacity 300 Sight Range 16 Terrain Scan Range 16 Terrain Scan Density 10 Armor Coverage 800 Evasion (%) 40 Recoil Reduction 2 Item Schematics ----------------- Hcp. Storage Unit | -10/Materials | Hacked Robot Schematics ------------------ None Fabricated ------------ Nothing Repaired ---------- Nothing Studied --------- None Alien Tech Used ----------------- None Achievements -------------- None Challenges ------------ None Game ------ Seed VortexCoreInterrupter Manual? 0 Play Time 00:17:04 Cumulative 375.0 hours Start 2025.11.15 @ 18:02:53 End 2025.11.15 @ 18:13:59 Sessions 1 Manual Loads 0 Difficulty Rogue Special Mode None Game No. 257 Rogue 257 Adventurer 0 Explorer 0 Win Type - Total 24 Types 9/0/8/1/1/0/2/1/1/1 Lore% 83 Gallery% 79 Achievement% 68 Wizard Run 0 Options --------- Layout 1 ASCII 0 Keyboard 0 Movement Mouse Keybinds 0 Fullscreen 2 Font 24/Smallcaps Map View 50x35 Zoom Use 0% Tactical HUD 1 Map Filters NONE Filters NONE Steam 1 RUN: c9188879-f3d1-4e18-9f22-26e48a1c81cd